[Event "*** SCC Grand Prix: Titled Tuesday Blitz"]
[Site "Chess.com"]
[Date "2020.06.02"]
[Round "8"]
[White "j2806"]
[Black "damayito"]
[Result "1-0"]
[WhiteElo "2104"]
[BlackElo "1652"]
[TimeControl "180+1"]
[EndTime "11:34:36 PDT"]
[Termination "j2806 won on time"]

1. e4 {[%clk 0:03:00.9]} 1... e6 {[%clk 0:00:43.8]} 2. d4 {[%clk 0:02:55.6]}
2... d5 {[%clk 0:00:43.7]} 3. exd5 {[%clk 0:02:55.1]} 3... exd5 {[%clk
0:00:39.5]} 4. Bd3 {[%clk 0:02:55.6]} 4... Nf6 {[%clk 0:00:39.8]} 5. h3 {[%clk
0:02:54.8]} 5... Bd6 {[%clk 0:00:40.3]} 6. Nf3 {[%clk 0:02:54.8]} 6... O-O
{[%clk 0:00:41]} 7. O-O {[%clk 0:02:55.4]} 7... c6 {[%clk 0:00:39.1]} 8. c3
{[%clk 0:02:55.6]} 8... Be6 {[%clk 0:00:38.4]} 9. Nbd2 {[%clk 0:02:55.2]} 9...
Nbd7 {[%clk 0:00:38.9]} 10. Re1 {[%clk 0:02:55.3]} 10... Qc7 {[%clk 0:00:39]}
11. Nf1 {[%clk 0:02:52.7]} 11... a6 {[%clk 0:00:37.3]} 12. Ne3 {[%clk
0:02:46.4]} 12... Bf4 {[%clk 0:00:36.1]} 13. Nf5 {[%clk 0:02:44]} 13... Bxc1
{[%clk 0:00:29.5]} 14. Rxc1 {[%clk 0:02:42.5]} 14... Rfe8 {[%clk 0:00:28.7]} 15.
Ng3 {[%clk 0:02:39.2]} 15... Nf8 {[%clk 0:00:26.5]} 16. Ne5 {[%clk 0:02:38.4]}
16... Ng6 {[%clk 0:00:24.9]} 17. Nxg6 {[%clk 0:02:37.3]} 17... hxg6 {[%clk
0:00:22.8]} 18. Qc2 {[%clk 0:02:35.9]} 18... Rad8 {[%clk 0:00:14.5]} 19. Re2
{[%clk 0:02:34.7]} 19... b5 {[%clk 0:00:13.7]} 20. Rce1 {[%clk 0:02:34]} 20...
Qd6 {[%clk 0:00:13.9]} 21. a3 {[%clk 0:02:30.3]} 21... a5 {[%clk 0:00:14.1]} 22.
Qd2 {[%clk 0:02:24.4]} 22... Rc8 {[%clk 0:00:14]} 23. f4 {[%clk 0:02:21.9]}
23... c5 {[%clk 0:00:12.4]} 24. f5 {[%clk 0:02:21.2]} 24... Bd7 {[%clk
0:00:11.8]} 25. Rxe8+ {[%clk 0:02:18.2]} 25... Rxe8 {[%clk 0:00:10.9]} 26. Rxe8+
{[%clk 0:02:17.2]} 26... Bxe8 {[%clk 0:00:10.7]} 27. Qf2 {[%clk 0:02:17.5]}
27... gxf5 {[%clk 0:00:10.3]} 28. Nxf5 {[%clk 0:02:17.3]} 28... Qe6 {[%clk
0:00:08.4]} 29. dxc5 {[%clk 0:02:14.5]} 29... b4 {[%clk 0:00:04.5]} 30. Nd4
{[%clk 0:02:11.6]} 30... Qe5 {[%clk 0:00:03]} 31. axb4 {[%clk 0:02:10.3]} 31...
axb4 {[%clk 0:00:02.4]} 32. cxb4 {[%clk 0:02:10.4]} 32... Ba4 {[%clk 0:00:01.7]}
33. c6 {[%clk 0:02:06.9]} 1-0

[Event "*** SCC Grand Prix: Titled Tuesday Blitz"]
[Site "Chess.com"]
[Date "2020.06.02"]
[Round "8"]
[White "wild_cat99"]
[Black "Evgeny81"]
[Result "0-1"]
[WhiteElo "2582"]
[BlackElo "2725"]
[TimeControl "180+1"]
[EndTime "11:34:47 PDT"]
[Termination "Evgeny81 won by resignation"]

1. Nf3 {[%clk 0:03:00.8]} 1... d5 {[%clk 0:02:59.9]} 2. e3 {[%clk 0:03:00.8]}
2... Nf6 {[%clk 0:02:58.8]} 3. c4 {[%clk 0:03:01]} 3... c6 {[%clk 0:02:59.2]} 4.
Nc3 {[%clk 0:03:00.3]} 4... Bg4 {[%clk 0:02:59]} 5. Be2 {[%clk 0:02:55.7]} 5...
e6 {[%clk 0:02:57.5]} 6. cxd5 {[%clk 0:02:49.7]} 6... Bxf3 {[%clk 0:02:51.8]} 7.
Bxf3 {[%clk 0:02:49]} 7... cxd5 {[%clk 0:02:52.1]} 8. O-O {[%clk 0:02:42.1]}
8... Nc6 {[%clk 0:02:52.1]} 9. d4 {[%clk 0:02:41.2]} 9... Bd6 {[%clk 0:02:50.2]}
10. a3 {[%clk 0:02:32.1]} 10... O-O {[%clk 0:02:49.8]} 11. b4 {[%clk 0:02:31.3]}
11... a6 {[%clk 0:02:37.6]} 12. Qd3 {[%clk 0:02:30.7]} 12... Rc8 {[%clk
0:02:34.3]} 13. Bb2 {[%clk 0:02:23.4]} 13... Nd7 {[%clk 0:02:30.4]} 14. Na4
{[%clk 0:02:16.9]} 14... Nb6 {[%clk 0:02:27.9]} 15. Nxb6 {[%clk 0:02:16.5]}
15... Qxb6 {[%clk 0:02:27.1]} 16. Rac1 {[%clk 0:02:16.6]} 16... Ne7 {[%clk
0:02:21]} 17. Be2 {[%clk 0:02:15]} 17... Rxc1 {[%clk 0:02:16]} 18. Rxc1 {[%clk
0:02:14.6]} 18... Rc8 {[%clk 0:02:16.7]} 19. b5 {[%clk 0:01:46.2]} 19... Rxc1+
{[%clk 0:02:13.7]} 20. Bxc1 {[%clk 0:01:46.6]} 20... Qc7 {[%clk 0:02:06.7]} 21.
Bb2 {[%clk 0:01:32.3]} 21... Bxh2+ {[%clk 0:02:06.4]} 22. Kh1 {[%clk 0:01:24.6]}
22... axb5 {[%clk 0:02:07.3]} 23. g3 {[%clk 0:01:23.4]} 23... Bxg3 {[%clk
0:02:05.7]} 24. fxg3 {[%clk 0:01:24.3]} 24... Nf5 {[%clk 0:02:03.7]} 25. Qxb5
{[%clk 0:01:12.6]} 25... h5 {[%clk 0:01:57.3]} 26. Qe8+ {[%clk 0:00:49.6]} 26...
Kh7 {[%clk 0:01:56.9]} 27. Bd3 {[%clk 0:00:49.6]} 27... Qxg3 {[%clk 0:01:52.1]}
28. Bxf5+ {[%clk 0:00:49.1]} 28... exf5 {[%clk 0:01:51.9]} 29. Qxf7 {[%clk
0:00:49.3]} 29... Qf3+ {[%clk 0:01:42]} 30. Kh2 {[%clk 0:00:47.4]} 30... h4
{[%clk 0:01:38.3]} 31. Bc1 {[%clk 0:00:45.3]} 31... h3 {[%clk 0:01:30]} 0-1

[Event "*** SCC Grand Prix: Titled Tuesday Blitz"]
[Site "Chess.com"]
[Date "2020.06.02"]
[Round "8"]
[White "BogdanBelyakov89"]
[Black "Oligan22"]
[Result "1-0"]
[WhiteElo "2639"]
[BlackElo "2426"]
[TimeControl "180+1"]
[EndTime "11:34:56 PDT"]
[Termination "BogdanBelyakov89 won by resignation"]

1. e4 {[%clk 0:03:00.9]} 1... c6 {[%clk 0:03:00]} 2. d4 {[%clk 0:02:58.9]} 2...
d5 {[%clk 0:03:00.5]} 3. exd5 {[%clk 0:02:59.8]} 3... cxd5 {[%clk 0:03:01.4]} 4.
c4 {[%clk 0:03:00.6]} 4... Nc6 {[%clk 0:02:58.4]} 5. cxd5 {[%clk 0:02:59.7]}
5... Qxd5 {[%clk 0:02:57.9]} 6. Nf3 {[%clk 0:03:00.1]} 6... e6 {[%clk
0:02:47.9]} 7. Nc3 {[%clk 0:02:59.4]} 7... Bb4 {[%clk 0:02:47.7]} 8. Bd2 {[%clk
0:02:56.2]} 8... Bxc3 {[%clk 0:02:47.5]} 9. bxc3 {[%clk 0:02:56]} 9... Nf6
{[%clk 0:02:47.5]} 10. Bd3 {[%clk 0:02:55.8]} 10... O-O {[%clk 0:02:46.9]} 11.
O-O {[%clk 0:02:55.9]} 11... b6 {[%clk 0:02:47.2]} 12. Bg5 {[%clk 0:02:48.5]}
12... Ne4 {[%clk 0:02:36.9]} 13. c4 {[%clk 0:02:23.6]} 13... Qf5 {[%clk
0:02:25.1]} 14. Re1 {[%clk 0:02:13.5]} 14... Bb7 {[%clk 0:01:56.9]} 15. Bxe4
{[%clk 0:02:11.2]} 15... Qg4 {[%clk 0:01:56.9]} 16. h3 {[%clk 0:02:03.5]} 16...
Qh5 {[%clk 0:01:56.5]} 17. Be3 {[%clk 0:01:59.5]} 17... f5 {[%clk 0:01:53.7]}
18. Bxc6 {[%clk 0:01:57.6]} 18... Bxc6 {[%clk 0:01:54.6]} 19. Ne5 {[%clk
0:01:57]} 19... Qe8 {[%clk 0:01:54.3]} 20. d5 {[%clk 0:01:47.6]} 20... Bb7
{[%clk 0:01:48.4]} 21. Bf4 {[%clk 0:01:35.1]} 21... Rd8 {[%clk 0:01:47.9]} 22.
d6 {[%clk 0:01:33.6]} 22... h6 {[%clk 0:01:40.3]} 23. h4 {[%clk 0:01:32.6]}
23... Ba8 {[%clk 0:01:17.7]} 24. h5 {[%clk 0:01:31.6]} 24... Bb7 {[%clk
0:01:17.8]} 25. Rc1 {[%clk 0:01:28.8]} 25... Rf6 {[%clk 0:01:16.6]} 26. c5
{[%clk 0:01:20.8]} 26... bxc5 {[%clk 0:01:17.5]} 27. Rxc5 {[%clk 0:01:20.1]}
27... Rf8 {[%clk 0:01:09.5]} 28. Rc7 {[%clk 0:01:17.7]} 28... Bd5 {[%clk
0:01:09.6]} 29. Ng6 {[%clk 0:01:15.4]} 29... Rf7 {[%clk 0:01:06.9]} 30. Ne7+
{[%clk 0:01:09.5]} 30... Rxe7 {[%clk 0:00:56]} 31. Rxe7 {[%clk 0:01:08.7]} 31...
Qc6 {[%clk 0:00:55.7]} 32. Qd4 {[%clk 0:01:02.2]} 1-0

[Event "*** SCC Grand Prix: Titled Tuesday Blitz"]
[Site "Chess.com"]
[Date "2020.06.02"]
[Round "8"]
[White "Niclox"]
[Black "OparinGrigoriy"]
[Result "0-1"]
[WhiteElo "2692"]
[BlackElo "2931"]
[TimeControl "180+1"]
[EndTime "11:35:00 PDT"]
[Termination "OparinGrigoriy won on time"]

1. e4 {[%clk 0:02:17.6]} 1... e5 {[%clk 0:02:59.5]} 2. Qh5 {[%clk 0:02:03.4]}
2... Nc6 {[%clk 0:02:44.5]} 3. Bc4 {[%clk 0:02:00.9]} 3... g6 {[%clk 0:02:39.9]}
4. Qf3 {[%clk 0:02:00.5]} 4... Nf6 {[%clk 0:02:38.3]} 5. Ne2 {[%clk 0:01:59]}
5... Bg7 {[%clk 0:02:37.3]} 6. Nbc3 {[%clk 0:01:57.3]} 6... d6 {[%clk
0:02:33.7]} 7. h3 {[%clk 0:01:48.9]} 7... O-O {[%clk 0:02:29.9]} 8. d3 {[%clk
0:01:49]} 8... Be6 {[%clk 0:02:27.7]} 9. Bg5 {[%clk 0:01:46.1]} 9... h6 {[%clk
0:02:21.8]} 10. Be3 {[%clk 0:01:43.9]} 10... Qe7 {[%clk 0:02:04.4]} 11. g4
{[%clk 0:01:40.8]} 11... Na5 {[%clk 0:01:59.2]} 12. Bb3 {[%clk 0:01:35.2]} 12...
Nxb3 {[%clk 0:01:46.6]} 13. axb3 {[%clk 0:01:36.1]} 13... Nh7 {[%clk 0:01:47]}
14. Ng3 {[%clk 0:01:28.3]} 14... c6 {[%clk 0:01:39.7]} 15. h4 {[%clk 0:01:11.8]}
15... Qd7 {[%clk 0:01:39.5]} 16. g5 {[%clk 0:00:58.8]} 16... h5 {[%clk
0:01:34.6]} 17. Qg2 {[%clk 0:00:47.8]} 17... d5 {[%clk 0:01:34.4]} 18. Nce2
{[%clk 0:00:34.4]} 18... Rfd8 {[%clk 0:01:31.9]} 19. O-O-O {[%clk 0:00:21.3]}
19... a5 {[%clk 0:01:30.1]} 20. Bc5 {[%clk 0:00:06.5]} 20... a4 {[%clk
0:01:28.9]} 21. bxa4 {[%clk 0:00:00.9]} 21... Rxa4 {[%clk 0:01:28.6]} 0-1

[Event "*** SCC Grand Prix: Titled Tuesday Blitz"]
[Site "Chess.com"]
[Date "2020.06.02"]
[Round "8"]
[White "Fortitudine"]
[Black "I_Hit_18K_on_BS"]
[Result "1-0"]
[WhiteElo "2276"]
[BlackElo "2063"]
[TimeControl "180+1"]
[EndTime "11:35:00 PDT"]
[Termination "Fortitudine won by resignation"]

1. c4 {[%clk 0:02:55.8]} 1... c5 {[%clk 0:02:30.6]} 2. g3 {[%clk 0:02:55.1]}
2... g6 {[%clk 0:02:28.9]} 3. Nc3 {[%clk 0:02:54.2]} 3... Nc6 {[%clk 0:02:28.8]}
4. Bg2 {[%clk 0:02:54.3]} 4... Bg7 {[%clk 0:02:29.1]} 5. e4 {[%clk 0:02:54.5]}
5... d6 {[%clk 0:02:29.5]} 6. d3 {[%clk 0:02:53.1]} 6... e6 {[%clk 0:02:28.8]}
7. Nge2 {[%clk 0:02:52.4]} 7... Nge7 {[%clk 0:02:29]} 8. O-O {[%clk 0:02:52.3]}
8... O-O {[%clk 0:02:28.5]} 9. Be3 {[%clk 0:02:52.6]} 9... a6 {[%clk 0:02:23.3]}
10. d4 {[%clk 0:02:51.8]} 10... cxd4 {[%clk 0:02:18.2]} 11. Nxd4 {[%clk
0:02:52.7]} 11... Qc7 {[%clk 0:02:16.5]} 12. Rc1 {[%clk 0:02:48.3]} 12... Ne5
{[%clk 0:01:51.5]} 13. b3 {[%clk 0:02:44.2]} 13... N7c6 {[%clk 0:01:14.1]} 14.
f4 {[%clk 0:02:38.6]} 14... Nxd4 {[%clk 0:01:10.7]} 15. Bxd4 {[%clk 0:02:39.5]}
15... Nc6 {[%clk 0:01:10.6]} 16. Bxg7 {[%clk 0:02:39.4]} 16... Kxg7 {[%clk
0:01:09.5]} 17. Qd2 {[%clk 0:02:37.3]} 17... b6 {[%clk 0:01:02.1]} 18. Rfd1
{[%clk 0:02:30.3]} 18... Rd8 {[%clk 0:01:00.8]} 19. Nd5 {[%clk 0:02:22.2]} 19...
Qb7 {[%clk 0:00:49.7]} 20. Qb2+ {[%clk 0:02:06.1]} 20... e5 {[%clk 0:00:40.4]}
21. f5 {[%clk 0:01:57.4]} 21... gxf5 {[%clk 0:00:28]} 22. exf5 {[%clk
0:01:56.1]} 22... Bxf5 {[%clk 0:00:23.6]} 23. Qf2 {[%clk 0:01:44.2]} 23... Bg6
{[%clk 0:00:18.3]} 24. Qf6+ {[%clk 0:01:42]} 24... Kg8 {[%clk 0:00:18]} 25. Ne3
{[%clk 0:01:38.4]} 25... Rac8 {[%clk 0:00:14.4]} 26. Ng4 {[%clk 0:01:27.4]}
26... Qe7 {[%clk 0:00:12.6]} 27. Nh6+ {[%clk 0:01:23.3]} 1-0

[Event "*** SCC Grand Prix: Titled Tuesday Blitz"]
[Site "Chess.com"]
[Date "2020.06.02"]
[Round "8"]
[White "ajdemipopushi"]
[Black "DraG0s3L"]
[Result "1/2-1/2"]
[WhiteElo "2341"]
[BlackElo "2512"]
[TimeControl "180+1"]
[EndTime "11:35:05 PDT"]
[Termination "Game drawn by repetition"]

1. Nf3 {[%clk 0:03:00.9]} 1... Nf6 {[%clk 0:02:59.9]} 2. g3 {[%clk 0:03:01.2]}
2... e6 {[%clk 0:03:00.4]} 3. Bg2 {[%clk 0:03:01.5]} 3... b6 {[%clk 0:03:01]} 4.
c4 {[%clk 0:03:02.2]} 4... Bb7 {[%clk 0:03:01.3]} 5. O-O {[%clk 0:03:03]} 5...
Be7 {[%clk 0:03:01.8]} 6. d4 {[%clk 0:03:03.3]} 6... O-O {[%clk 0:03:02.1]} 7.
Nc3 {[%clk 0:03:03.5]} 7... d6 {[%clk 0:03:02.5]} 8. d5 {[%clk 0:03:01.8]} 8...
e5 {[%clk 0:03:01.7]} 9. e4 {[%clk 0:02:58.8]} 9... Ne8 {[%clk 0:03:02]} 10. Ne1
{[%clk 0:02:57.2]} 10... f5 {[%clk 0:03:00.8]} 11. Nd3 {[%clk 0:02:55.5]} 11...
Bc8 {[%clk 0:02:56.7]} 12. f4 {[%clk 0:02:54.2]} 12... exf4 {[%clk 0:02:54.4]}
13. Bxf4 {[%clk 0:02:45.4]} 13... Nd7 {[%clk 0:02:47.6]} 14. Qe2 {[%clk
0:02:35.5]} 14... Nc5 {[%clk 0:02:45.5]} 15. Nxc5 {[%clk 0:02:32.7]} 15... bxc5
{[%clk 0:02:46.4]} 16. e5 {[%clk 0:02:31.4]} 16... Bd7 {[%clk 0:02:38.2]} 17.
Rae1 {[%clk 0:02:23.2]} 17... dxe5 {[%clk 0:02:36.4]} 18. Bxe5 {[%clk
0:02:22.2]} 18... Bd6 {[%clk 0:02:37]} 19. b3 {[%clk 0:01:56.8]} 19... Bxe5
{[%clk 0:02:29.2]} 20. Qxe5 {[%clk 0:01:55.4]} 20... Nd6 {[%clk 0:02:30]} 21.
Qe3 {[%clk 0:01:48.9]} 21... Qf6 {[%clk 0:02:27.2]} 22. Ne2 {[%clk 0:01:47.4]}
22... Rae8 {[%clk 0:01:59]} 23. Qxc5 {[%clk 0:01:46]} 23... Re7 {[%clk
0:01:53.5]} 24. Nf4 {[%clk 0:01:36.8]} 24... Rfe8 {[%clk 0:01:52.4]} 25. Rxe7
{[%clk 0:01:27.2]} 25... Rxe7 {[%clk 0:01:53.3]} 26. Qxc7 {[%clk 0:01:24.2]}
26... Ne4 {[%clk 0:01:47.7]} 27. Qd8+ {[%clk 0:01:15.2]} 27... Kf7 {[%clk
0:01:45.9]} 28. Bxe4 {[%clk 0:01:05.8]} 28... Qd4+ {[%clk 0:01:41.5]} 29. Kg2
{[%clk 0:01:00.7]} 29... Qxe4+ {[%clk 0:01:41.2]} 30. Kg1 {[%clk 0:00:55.7]}
30... Qe3+ {[%clk 0:01:19.2]} 31. Kg2 {[%clk 0:00:53.6]} 31... Qe4+ {[%clk
0:01:15.6]} 32. Kg1 {[%clk 0:00:52.9]} 32... Qe3+ {[%clk 0:01:16]} 33. Rf2
{[%clk 0:00:49]} 33... Qe1+ {[%clk 0:01:15.6]} 34. Kg2 {[%clk 0:00:49.2]} 34...
Qe4+ {[%clk 0:01:16.2]} 35. Kg1 {[%clk 0:00:32.9]} 35... Qe1+ {[%clk 0:01:15.4]}
36. Rf1 {[%clk 0:00:33.2]} 36... Qe3+ {[%clk 0:01:15.6]} 1/2-1/2

[Event "*** SCC Grand Prix: Titled Tuesday Blitz"]
[Site "Chess.com"]
[Date "2020.06.02"]
[Round "8"]
[White "zajka-molotok"]
[Black "gemarin"]
[Result "1-0"]
[WhiteElo "2373"]
[BlackElo "2030"]
[TimeControl "180+1"]
[EndTime "11:35:10 PDT"]
[Termination "zajka-molotok won by resignation"]

1. c4 {[%clk 0:03:00.9]} 1... c6 {[%clk 0:02:56]} 2. e4 {[%clk 0:02:57.2]} 2...
d6 {[%clk 0:02:49.5]} 3. d4 {[%clk 0:02:52.6]} 3... Nf6 {[%clk 0:02:49.8]} 4.
Nc3 {[%clk 0:02:52]} 4... Nbd7 {[%clk 0:02:48.2]} 5. f4 {[%clk 0:02:47.4]} 5...
e5 {[%clk 0:02:36.1]} 6. Nf3 {[%clk 0:02:45.5]} 6... Qa5 {[%clk 0:02:20]} 7. Bd3
{[%clk 0:02:20.9]} 7... Be7 {[%clk 0:02:11.6]} 8. O-O {[%clk 0:02:19.5]} 8...
O-O {[%clk 0:02:10.6]} 9. fxe5 {[%clk 0:02:14]} 9... dxe5 {[%clk 0:02:09.4]} 10.
d5 {[%clk 0:02:14.6]} 10... Bc5+ {[%clk 0:02:03.1]} 11. Kh1 {[%clk 0:02:13.8]}
11... Ng4 {[%clk 0:02:02.3]} 12. Qe2 {[%clk 0:02:12]} 12... Qc7 {[%clk 0:01:01]}
13. h3 {[%clk 0:02:08.4]} 13... Ngf6 {[%clk 0:00:59.4]} 14. Nh4 {[%clk
0:01:57.3]} 14... Bd4 {[%clk 0:00:51.4]} 15. Bd2 {[%clk 0:01:56.5]} 15... Nc5
{[%clk 0:00:49]} 16. Bc2 {[%clk 0:01:52.3]} 16... a5 {[%clk 0:00:37.8]} 17. Nf5
{[%clk 0:01:51.6]} 17... Bxf5 {[%clk 0:00:34.8]} 18. Rxf5 {[%clk 0:01:50.6]}
18... Nfd7 {[%clk 0:00:28.6]} 19. Raf1 {[%clk 0:01:49.9]} 19... f6 {[%clk
0:00:27.6]} 20. b3 {[%clk 0:01:45.4]} 20... Nb6 {[%clk 0:00:19.3]} 21. Qg4
{[%clk 0:01:39]} 21... Kh8 {[%clk 0:00:16.9]} 22. Ne2 {[%clk 0:01:37.7]} 22...
Nc8 {[%clk 0:00:14.8]} 23. Nxd4 {[%clk 0:01:36.7]} 23... exd4 {[%clk 0:00:15.6]}
24. Bf4 {[%clk 0:01:32.8]} 24... Qd7 {[%clk 0:00:13.4]} 25. dxc6 {[%clk
0:01:19.2]} 25... bxc6 {[%clk 0:00:12.6]} 26. Rxc5 {[%clk 0:01:18.1]} 26... Qxg4
{[%clk 0:00:11.9]} 27. hxg4 {[%clk 0:01:18.4]} 1-0

[Event "*** SCC Grand Prix: Titled Tuesday Blitz"]
[Site "Chess.com"]
[Date "2020.06.02"]
[Round "8"]
[White "mr65"]
[Black "Sjakkerntobi"]
[Result "1-0"]
[WhiteElo "2173"]
[BlackElo "2240"]
[TimeControl "180+1"]
[EndTime "11:35:11 PDT"]
[Termination "mr65 won by resignation"]

1. e4 {[%clk 0:02:58.8]} 1... e6 {[%clk 0:02:57.7]} 2. d4 {[%clk 0:02:58.2]}
2... d5 {[%clk 0:02:58.6]} 3. Nc3 {[%clk 0:02:58.1]} 3... Bb4 {[%clk 0:02:57.5]}
4. e5 {[%clk 0:02:57.9]} 4... Ne7 {[%clk 0:02:54.9]} 5. a3 {[%clk 0:02:57.4]}
5... Bxc3+ {[%clk 0:02:42]} 6. bxc3 {[%clk 0:02:56.8]} 6... c5 {[%clk
0:02:42.9]} 7. Nf3 {[%clk 0:02:55.1]} 7... Qc7 {[%clk 0:02:33.6]} 8. a4 {[%clk
0:02:51.9]} 8... b6 {[%clk 0:02:27.6]} 9. Bb5+ {[%clk 0:02:49.7]} 9... Bd7
{[%clk 0:02:23.3]} 10. Bd3 {[%clk 0:02:45.1]} 10... Bc8 {[%clk 0:02:14]} 11. O-O
{[%clk 0:02:39.8]} 11... Ba6 {[%clk 0:02:12.8]} 12. Ba3 {[%clk 0:02:32.4]} 12...
O-O {[%clk 0:01:47.9]} 13. Bxh7+ {[%clk 0:02:21.8]} 13... Kxh7 {[%clk
0:01:36.5]} 14. Ng5+ {[%clk 0:02:20.9]} 14... Kg6 {[%clk 0:01:36.6]} 15. Qg4
{[%clk 0:02:20.4]} 15... Be2 {[%clk 0:01:27.3]} 16. Nf3+ {[%clk 0:02:10.4]}
16... Kh7 {[%clk 0:01:20.4]} 17. Ng5+ {[%clk 0:02:09]} 17... Kg6 {[%clk
0:01:20.7]} 18. Qh4 {[%clk 0:01:48.8]} 18... Bh5 {[%clk 0:00:40.5]} 19. g4
{[%clk 0:01:27.3]} 19... Rh8 {[%clk 0:00:23.2]} 20. f4 {[%clk 0:01:26.8]} 20...
f5 {[%clk 0:00:20.4]} 21. gxh5+ {[%clk 0:01:24.2]} 21... Rxh5 {[%clk 0:00:20.4]}
22. Qg3 {[%clk 0:01:23]} 22... Kh6 {[%clk 0:00:20]} 23. Nxe6 {[%clk 0:01:01.8]}
1-0

[Event "*** SCC Grand Prix: Titled Tuesday Blitz"]
[Site "Chess.com"]
[Date "2020.06.02"]
[Round "8"]
[White "mattcolins2025"]
[Black "Charlottemillard17"]
[Result "1-0"]
[WhiteElo "2361"]
[BlackElo "1510"]
[TimeControl "180+1"]
[EndTime "11:35:12 PDT"]
[Termination "mattcolins2025 won by checkmate"]

1. d4 {[%clk 0:03:00.9]} 1... Nf6 {[%clk 0:02:58]} 2. c4 {[%clk 0:03:01.3]} 2...
g6 {[%clk 0:02:56.1]} 3. Nc3 {[%clk 0:03:01.6]} 3... Bg7 {[%clk 0:02:55.5]} 4.
e4 {[%clk 0:03:02]} 4... d6 {[%clk 0:02:55.1]} 5. Nf3 {[%clk 0:03:02.4]} 5...
Nbd7 {[%clk 0:02:44.3]} 6. Be2 {[%clk 0:03:02.6]} 6... O-O {[%clk 0:02:39.8]} 7.
O-O {[%clk 0:03:02.5]} 7... e5 {[%clk 0:02:38.5]} 8. d5 {[%clk 0:03:02.7]} 8...
Nb6 {[%clk 0:02:35.9]} 9. Bg5 {[%clk 0:02:59.6]} 9... Bg4 {[%clk 0:02:28.1]} 10.
Nd2 {[%clk 0:02:57.4]} 10... Bxe2 {[%clk 0:02:23.4]} 11. Qxe2 {[%clk 0:02:58.3]}
11... Qd7 {[%clk 0:02:23.2]} 12. b4 {[%clk 0:02:50.9]} 12... c6 {[%clk
0:02:07.4]} 13. c5 {[%clk 0:02:44.3]} 13... Nc8 {[%clk 0:02:04]} 14. Nc4 {[%clk
0:02:12.7]} 14... cxd5 {[%clk 0:01:57.5]} 15. exd5 {[%clk 0:02:10.9]} 15... dxc5
{[%clk 0:01:51.3]} 16. Bxf6 {[%clk 0:02:03]} 16... Bxf6 {[%clk 0:01:37.9]} 17.
bxc5 {[%clk 0:02:02.4]} 17... Re8 {[%clk 0:01:34.5]} 18. Ne4 {[%clk 0:02:00.8]}
18... Bg7 {[%clk 0:01:25.8]} 19. Rad1 {[%clk 0:01:56.6]} 19... Qa4 {[%clk
0:01:23.2]} 20. Ncd6 {[%clk 0:01:54.2]} 20... Nxd6 {[%clk 0:01:16.8]} 21. Nxd6
{[%clk 0:01:53.8]} 21... Re7 {[%clk 0:01:13.4]} 22. Rc1 {[%clk 0:01:45]} 22...
b6 {[%clk 0:00:54.5]} 23. c6 {[%clk 0:01:43.7]} 23... Qa3 {[%clk 0:00:49.6]} 24.
Nb5 {[%clk 0:01:41.5]} 24... Qb4 {[%clk 0:00:40.4]} 25. d6 {[%clk 0:01:40.6]}
25... Re6 {[%clk 0:00:36.7]} 26. c7 {[%clk 0:01:40.1]} 26... a6 {[%clk
0:00:27.9]} 27. d7 {[%clk 0:01:37]} 27... Qf8 {[%clk 0:00:16]} 28. c8=Q {[%clk
0:01:35.7]} 28... Rxc8 {[%clk 0:00:16.1]} 29. Rxc8 {[%clk 0:01:36]} 29... Qxc8
{[%clk 0:00:11.5]} 30. dxc8=Q+ {[%clk 0:01:36.3]} 30... Bf8 {[%clk 0:00:12.4]}
31. Qe3 {[%clk 0:01:35.4]} 31... axb5 {[%clk 0:00:11.6]} 32. Qh6 {[%clk
0:01:35]} 32... b4 {[%clk 0:00:07.5]} 33. Qcxf8# {[%clk 0:01:35.1]} 1-0

[Event "*** SCC Grand Prix: Titled Tuesday Blitz"]
[Site "Chess.com"]
[Date "2020.06.02"]
[Round "8"]
[White "zurzan"]
[Black "gumimis"]
[Result "0-1"]
[WhiteElo "1920"]
[BlackElo "2132"]
[TimeControl "180+1"]
[EndTime "11:35:12 PDT"]
[Termination "gumimis won by checkmate"]

1. f4 {[%clk 0:03:00.9]} 1... c5 {[%clk 0:02:59]} 2. Nf3 {[%clk 0:03:00.4]} 2...
Nc6 {[%clk 0:02:59.1]} 3. g3 {[%clk 0:03:00.7]} 3... g6 {[%clk 0:02:59.2]} 4.
Bg2 {[%clk 0:03:01.6]} 4... Bg7 {[%clk 0:02:59.7]} 5. O-O {[%clk 0:03:02.5]}
5... e6 {[%clk 0:02:59.9]} 6. d3 {[%clk 0:03:03.4]} 6... d5 {[%clk 0:02:59.7]}
7. c3 {[%clk 0:03:02]} 7... Nge7 {[%clk 0:02:59.7]} 8. Qe1 {[%clk 0:03:01.5]}
8... O-O {[%clk 0:02:59.1]} 9. e4 {[%clk 0:03:01.1]} 9... b5 {[%clk 0:02:53.7]}
10. a3 {[%clk 0:02:58.9]} 10... a5 {[%clk 0:02:50.4]} 11. Bd2 {[%clk 0:02:55.3]}
11... Ba6 {[%clk 0:02:44.6]} 12. Rf2 {[%clk 0:02:52.9]} 12... Qb6 {[%clk
0:02:35.8]} 13. Kh1 {[%clk 0:02:50.8]} 13... b4 {[%clk 0:02:24.5]} 14. axb4
{[%clk 0:02:50.4]} 14... axb4 {[%clk 0:02:23.1]} 15. e5 {[%clk 0:02:47.4]} 15...
Bxd3 {[%clk 0:02:19.8]} 16. Rxa8 {[%clk 0:02:44.6]} 16... Rxa8 {[%clk
0:02:20.7]} 17. cxb4 {[%clk 0:02:43]} 17... Ra1 {[%clk 0:02:04.9]} 18. bxc5
{[%clk 0:02:33]} 18... Qxc5 {[%clk 0:02:04.2]} 19. Be3 {[%clk 0:02:22.9]} 19...
d4 {[%clk 0:02:00.1]} 20. Nxd4 {[%clk 0:02:14.1]} 20... Nxd4 {[%clk 0:02:00.1]}
21. Rd2 {[%clk 0:01:56.6]} 21... Rxb1 {[%clk 0:01:54.9]} 22. Qxb1 {[%clk
0:01:56.4]} 22... Bxb1 {[%clk 0:01:54.9]} 23. Rxd4 {[%clk 0:01:54.3]} 23... Qc7
{[%clk 0:01:46.2]} 24. b3 {[%clk 0:01:46.5]} 24... Nf5 {[%clk 0:01:46]} 25. Rc4
{[%clk 0:01:45.7]} 25... Qd7 {[%clk 0:01:41.2]} 26. Bg1 {[%clk 0:01:40.7]} 26...
g5 {[%clk 0:01:33.1]} 27. Bc6 {[%clk 0:01:34.5]} 27... Qe7 {[%clk 0:01:15.6]}
28. b4 {[%clk 0:01:32.2]} 28... gxf4 {[%clk 0:01:12.6]} 29. Bc5 {[%clk
0:01:31.5]} 29... Qg5 {[%clk 0:01:06.9]} 30. Rxf4 {[%clk 0:01:31.3]} 30... Bxe5
{[%clk 0:01:05.3]} 31. Rf3 {[%clk 0:01:20.3]} 31... Qc1+ {[%clk 0:00:59.6]} 32.
Kg2 {[%clk 0:01:09.6]} 32... Nd4 {[%clk 0:00:58.1]} 33. Bxd4 {[%clk 0:01:01.3]}
33... Qxc6 {[%clk 0:00:57.1]} 34. Bxe5 {[%clk 0:00:59.9]} 34... Be4 {[%clk
0:00:57.3]} 35. b5 {[%clk 0:00:57.3]} 35... Bxf3+ {[%clk 0:00:57.1]} 36. Kh3
{[%clk 0:00:58.2]} 36... Qxb5 {[%clk 0:00:56.8]} 37. Bf4 {[%clk 0:00:57.8]}
37... Qh5# {[%clk 0:00:56.8]} 0-1